bitfinex/quotes_BTCUSD_20240915
["timestamp","ask_amount","ask_price","bid_price","bid_amount"]
[1726375871033,0.003646,60278.0,60277.0,1.46004955]
[1726375871712,0.003646,60278.0,60277.0,1.41041496]
[1726375872821,0.003646,60278.0,60277.0,1.48486684]
[1726375873684,0.003646,60278.0,60277.0,1.41041496]
[1726375873896,0.003646,60278.0,60277.0,1.50968414]
[1726375874157,0.003646,60278.0,60277.0,1.41041496]
[1726375874374,0.003646,60278.0,60277.0,1.41040852]
[1726375874586,0.003646,60278.0,60277.0,1.5096777]
[1726375874858,0.003646,60278.0,60277.0,1.41040852]
[1726375875944,0.003646,60278.0,60277.0,1.50992129]
[1726375876193,0.003646,60278.0,60277.0,1.41040852]
[1726375876611,0.003646,60278.0,60277.0,1.53479965]
[1726375877038,0.003646,60278.0,60277.0,1.41040852]
[1726375877270,0.003646,60278.0,60277.0,1.53479965]
[1726375877496,0.003646,60278.0,60277.0,1.41040852]
[1726375877709,0.003646,60278.0,60277.0,1.51330748]
[1726375877922,0.003646,60278.0,60277.0,1.53479547]
[1726375878362,0.003646,60278.0,60277.0,1.41040434]
[1726375878602,0.003646,60278.0,60277.0,1.53479547]
[1726375879506,0.003646,60278.0,60277.0,1.86659647]
[1726375880596,0.003646,60278.0,60277.0,1.74220534]
[1726375881262,0.003646,60278.0,60277.0,1.72071735]
[1726375881487,0.003646,60278.0,60277.0,1.74220742]
[1726375884448,0.02101193,60278.0,60277.0,1.74220742]
[1726375885818,0.02101193,60278.0,60277.0,1.86668631]
[1726375886256,0.02101193,60278.0,60277.0,1.74204157]
[1726375887140,0.02101193,60278.0,60277.0,1.86651966]
[1726375887615,0.02101193,60278.0,60277.0,1.86651984]
[1726375887799,0.02101193,60278.0,60277.0,1.74204157]
[1726375888475,0.02101193,60278.0,60277.0,1.72071735]
[1726375888704,0.02101193,60278.0,60277.0,1.74204975]
[1726375888929,0.02101193,60278.0,60277.0,1.86652783]
[1726375890966,0.02101193,60278.0,60277.0,1.86652933]
[1726375894779,0.02101193,60278.0,60277.0,1.53472833]
[1726375894996,0.02101193,60278.0,60277.0,1.53473875]
[1726375895223,0.02101193,60278.0,60277.0,1.51340485]
[1726375895468,0.02101193,60278.0,60277.0,1.53475106]
[1726375898448,0.02101193,60278.0,60277.0,1.51340485]
[1726375898686,0.02101193,60278.0,60277.0,1.41026725]
[1726375900768,0.02101193,60278.0,60277.0,0.20134744]
[1726375900769,0.69230593,60278.0,60277.0,0.20134744]
[1726375900994,0.69230593,60278.0,60277.0,0.17644372]
[1726375901245,0.69230593,60278.0,60277.0,0.07682218]
[1726375901710,0.36050993,60278.0,60277.0,0.006]
[1726375901918,0.36050993,60278.0,60270.0,0.165918]
[1726375901919,0.0921,60273.0,60270.0,0.165918]
[1726375902131,0.0921,60273.0,60272.0,0.023]
[1726375903783,0.0921,60273.0,60268.0,0.166747]
[1726375904000,0.0921,60273.0,60269.0,0.023]
[1726375904471,0.0921,60273.0,60272.0,0.001]
[1726375904703,0.0931,60273.0,60272.0,0.0450747]
[1726375904923,0.0941,60273.0,60272.0,0.0450747]
[1726375905137,0.0921,60273.0,60272.0,0.0420747]
[1726375907166,0.0921,60273.0,60272.0,0.0450747]
[1726375907609,0.258011,60273.0,60272.0,0.0450747]
[1726375908058,0.339511,60273.0,60272.0,0.0450747]
[1726375909453,0.671334,60273.0,60272.0,0.0450747]
[1726375909669,0.671334,60273.0,60272.0,0.0220747]
[1726375909881,1.003157,60273.0,60272.0,0.003]
[1726375910528,1.003157,60273.0,60272.0,0.001]
[1726375910790,0.16592,60270.0,60269.0,0.023]
[1726375911026,0.33952,60270.0,60269.0,0.0419756]
[1726375911737,0.35688593,60270.0,60269.0,0.0419756]
[1726375911959,0.33952,60270.0,60269.0,0.0419756]
[1726375912174,0.165922,60269.0,60268.0,0.000823]
[1726375912385,0.258022,60269.0,60268.0,0.000823]
[1726375913218,0.921712,60269.0,60268.0,0.000823]
[1726375913497,1.003212,60269.0,60268.0,0.000823]
[1726375914169,1.003212,60269.0,60268.0,0.001823]
[1726375914389,0.671367,60269.0,60268.0,0.000823]
[1726375914616,0.671367,60269.0,60268.0,0.003823]
[1726375915041,0.671367,60269.0,60268.0,0.000823]
[1726375915231,0.671367,60269.0,60268.0,0.01173527]
[1726375915466,0.671367,60269.0,60268.0,0.01373527]
[1726375915725,0.671367,60269.0,60268.0,0.01273527]
[1726375915953,0.671367,60269.0,60268.0,0.01073527]
[1726375916169,0.339522,60269.0,60268.0,0.01373527]
[1726375916405,0.339522,60269.0,60268.0,0.08734925]
[1726375916406,0.365557,60269.0,60268.0,0.08734925]
[1726375916640,0.697402,60269.0,60268.0,0.08734925]
[1726375917139,0.697402,60269.0,60268.0,0.08834925]
[1726375921998,0.365557,60269.0,60268.0,0.08834925]
[1726375922214,0.697402,60269.0,60268.0,0.08834925]
[1726375923306,0.671367,60269.0,60268.0,0.08834925]
[1726375926163,0.339522,60269.0,60268.0,0.08834925]
[1726375927715,0.35688793,60269.0,60268.0,0.08834925]
[1726375929549,0.68873293,60269.0,60268.0,0.08834925]
[1726375930871,0.35688793,60269.0,60268.0,0.08834925]
[1726375931068,0.19096593,60269.0,60268.0,0.08834925]
[1726375931299,0.35688793,60269.0,60268.0,0.08834925]
[1726375933019,0.35853393,60269.0,60268.0,0.08834925]
[1726375940004,0.01901193,60269.0,60268.0,1.0362759]
[1726375940441,0.01901193,60269.0,60268.0,0.7044249]
[1726375949804,0.01901193,60269.0,60268.0,1.0362759]
[1726375952262,0.01901193,60269.0,60268.0,0.7044249]
[1726375952480,0.01901193,60269.0,60268.0,1.0362759]
[1726375956307,0.04504601,60269.0,60268.0,1.0362759]
[1726375956543,0.04504601,60269.0,60268.0,0.27727425]
[1726375956757,0.14204601,60269.0,60268.0,0.27727425]
[1726375956980,0.14204601,60269.0,60268.0,0.60912525]
[1726375957676,0.11601193,60269.0,60268.0,0.60912525]
[1726375958595,0.11601193,60269.0,60268.0,0.27727425]
[1726375966391,0.14204639,60269.0,60268.0,0.27727425]
[1726375967538,0.11601193,60269.0,60268.0,0.27727425]
[1726375979345,0.11601193,60269.0,60268.0,0.60912525]
[1726375981198,0.14204625,60269.0,60268.0,0.60912525]
[1726375981902,0.04504625,60269.0,60268.0,0.60912525]
[1726375982115,0.01901193,60269.0,60268.0,0.60912525]
[1726375982801,0.01901193,60269.0,60268.0,0.7044249]
[1726375985209,0.04504625,60269.0,60268.0,0.7044249]
[1726375985646,0.01901193,60269.0,60268.0,0.7044249]
[1726375996288,0.04504616,60269.0,60268.0,0.7044249]
[1726375997622,0.01901193,60269.0,60268.0,0.7044249]
[1726375998468,0.01901193,60269.0,60268.0,1.0362759]
[1726376010360,0.01901193,60269.0,60268.0,1.08612994]
[1726376011426,0.01901193,60269.0,60268.0,1.0362759]
[1726376015780,0.01901193,60269.0,60268.0,0.94097625]
[1726376017840,0.04504566,60269.0,60268.0,0.94097625]
[1726376018962,0.14204566,60269.0,60268.0,0.94097625]
[1726376019184,0.11601193,60269.0,60268.0,0.94097625]
[1726376021256,0.11601193,60269.0,60268.0,0.60912525]
[1726376022555,0.14204566,60269.0,60268.0,0.60912525]
[1726376027481,0.11601193,60269.0,60268.0,0.60912525]
[1726376037558,1.11601193,60269.0,60268.0,0.60912525]
[1726376042039,1.01901193,60269.0,60268.0,0.60912525]
[1726376042252,1.01901193,60269.0,60268.0,0.94097625]
[1726376042463,1.01901193,60269.0,60268.0,0.60912525]
[1726376043359,1.11711193,60269.0,60268.0,0.60912525]
[1726376049149,1.01901193,60269.0,60268.0,1.27282725]
[1726376049351,1.01901193,60269.0,60268.0,1.34761106]
[1726376049569,1.01901193,60269.0,60268.0,0.94097625]
[1726376050020,1.01901193,60269.0,60268.0,1.040688]
[1726376050236,1.01901193,60269.0,60268.0,1.01573918]
[1726376052018,1.01901193,60269.0,60268.0,0.94097625]
[1726376052227,1.01901193,60269.0,60268.0,1.01573918]
[1726376053088,1.01901193,60269.0,60268.0,0.94097625]
[1726376053515,1.01901193,60269.0,60268.0,1.01573918]
[1726376053726,1.01901193,60269.0,60268.0,0.94097625]
[1726376055480,1.01901193,60269.0,60268.0,0.9907987]
[1726376056595,1.01901193,60269.0,60268.0,0.94097625]
[1726376086741,1.01901193,60269.0,60268.0,0.60912525]
[1726376086954,1.11441193,60269.0,60268.0,0.7044249]
[1726376093143,1.11441193,60269.0,60268.0,0.75426458]
[1726376093370,1.11441193,60269.0,60268.0,0.7044249]
[1726376095696,1.11441193,60269.0,60268.0,0.75426458]
[1726376096067,1.11441193,60269.0,60268.0,0.7044249]
[1726376096266,1.11441193,60269.0,60268.0,0.75426458]
[1726376096505,1.11441193,60269.0,60268.0,0.6806506]
[1726376096680,1.11441193,60269.0,60268.0,0.75427139]
[1726376096883,1.11441193,60269.0,60268.0,0.70443171]
[1726376097290,1.11441193,60269.0,60268.0,0.75427139]
[1726376097715,1.11441193,60269.0,60268.0,1.08612239]
[1726376098119,1.01901193,60269.0,60268.0,1.08612239]
[1726376104715,1.01901193,60269.0,60268.0,1.08614497]
[1726376105838,1.01901193,60269.0,60268.0,1.08614508]
[1726376107826,1.01901193,60269.0,60268.0,1.03628271]
[1726376108070,1.01901193,60269.0,60268.0,1.08614564]
[1726376108741,1.01901193,60269.0,60268.0,1.03628271]
[1726376109414,1.01901193,60269.0,60268.0,1.08614591]
[1726376111688,1.01901193,60269.0,60268.0,1.03628271]
[1726376112141,1.01901193,60269.0,60268.0,1.08614647]
[1726376112363,1.01901193,60269.0,60268.0,1.03628271]
[1726376114222,1.01901193,60269.0,60268.0,1.08614732]
[1726376114223,1.11821193,60269.0,60268.0,1.08614732]
[1726376115972,1.11821193,60269.0,60268.0,1.03628271]
[1726376116183,1.11821193,60269.0,60268.0,1.08614733]
[1726376118900,1.11821193,60269.0,60268.0,1.08614755]
[1726376123178,1.11821193,60269.0,60268.0,1.03628271]
[1726376123825,1.11821193,60269.0,60268.0,1.08614696]
[1726376130783,1.11821193,60269.0,60268.0,0.99084731]
[1726376137257,1.11821193,60269.0,60268.0,0.94098306]
[1726376145707,1.11821193,60269.0,60268.0,0.60913206]
[1726376153074,1.01901193,60269.0,60268.0,0.60913206]
[1726376154169,1.01901193,60269.0,60268.0,0.94098306]
[1726376154383,1.01901193,60269.0,60268.0,0.60913206]
[1726376155060,1.01901193,60269.0,60268.0,0.94098306]
[1726376156660,1.01901193,60269.0,60268.0,0.99083814]
[1726376156886,1.01901193,60269.0,60268.0,1.08433814]
[1726376159088,1.01901193,60269.0,60268.0,0.99083814]
[1726376163847,1.01901193,60269.0,60268.0,1.32268914]
[1726376164058,1.01901193,60269.0,60268.0,0.99083814]
[1726376166931,1.01901193,60269.0,60268.0,0.94098306]
[1726376167771,1.01901193,60269.0,60268.0,0.99083377]
[1726376168855,1.01901193,60269.0,60268.0,0.94098306]
[1726376170344,1.01901193,60269.0,60268.0,0.99083366]
[1726376175844,1.11711193,60269.0,60268.0,0.99083366]
[1726376180725,1.11711193,60269.0,60268.0,0.99083152]
[1726376181599,1.01901193,60269.0,60268.0,1.32268252]
[1726376181810,1.01901193,60269.0,60268.0,1.54333098]
[1726376182025,1.01901193,60269.0,60268.0,1.23640421]
[1726376182308,1.001646,60269.0,60268.0,1.2114733]
[1726376182506,1.001646,60269.0,60268.0,1.5433243]
[1726376183424,1.001646,60269.0,60268.0,1.54329818]
[1726376185315,1.001646,60269.0,60268.0,1.44363406]
[1726376185791,1.001646,60269.0,60268.0,1.51837265]
[1726376188765,1.001646,60269.0,60268.0,1.43957265]
[1726376189423,1.001646,60269.0,60268.0,1.43956456]
[1726376192652,1.001646,60269.0,60268.0,1.34756456]
[1726376195751,1.001646,60269.0,60268.0,1.01571356]
[1726376197390,1.001646,60269.0,60268.0,1.34756456]
[1726376198044,1.001646,60269.0,60268.0,1.27283406]
[1726376198267,1.001646,60269.0,60268.0,1.34756266]
[1726376198492,1.001646,60269.0,60268.0,1.27283406]
[1726376198711,1.001646,60269.0,60268.0,1.34756433]
[1726376202048,1.001646,60269.0,60268.0,1.01571333]
[1726376202533,1.001646,60269.0,60268.0,1.34756433]
[1726376206315,1.001646,60269.0,60268.0,1.01571333]
[1726376206786,1.001646,60269.0,60268.0,1.34756433]
[1726376208309,1.001646,60269.0,60268.0,1.01571333]
[1726376209214,1.001646,60269.0,60268.0,1.39739362]
[1726376209666,1.001646,60269.0,60268.0,1.06554262]
[1726376210343,1.001646,60269.0,60268.0,1.27283406]
[1726376210579,1.001646,60269.0,60268.0,1.39739362]
[1726376211923,1.001646,60269.0,60268.0,1.27283406]
[1726376212375,1.001646,60269.0,60268.0,1.39739362]
[1726376212596,1.001646,60269.0,60268.0,1.27283406]
[1726376214655,1.001646,60269.0,60268.0,1.3973799]
[1726376215099,1.001646,60269.0,60268.0,1.27283406]
[1726376216931,1.001646,60269.0,60268.0,1.29341283]
[1726376217145,1.001646,60269.0,60268.0,1.27283406]
[1726376217360,1.001646,60269.0,60268.0,1.29341818]
[1726376217807,1.001646,60269.0,60268.0,1.39304997]
[1726376218659,1.001646,60269.0,60268.0,1.06119769]
[1726376218871,1.001646,60269.0,60268.0,1.04061485]
[1726376219084,1.001646,60269.0,60268.0,1.27283406]
[1726376219509,1.001646,60269.0,60268.0,0.94098306]
[1726376219718,1.001646,60269.0,60268.0,1.27283406]
[1726376220377,1.001646,60269.0,60268.0,1.34756174]
[1726376221094,1.001646,60269.0,60268.0,1.34756615]
[1726376221319,1.001646,60269.0,60268.0,1.37138156]
[1726376221766,1.001646,60269.0,60268.0,1.03953056]
[1726376222194,1.001646,60269.0,60268.0,1.37138156]
[1726376222403,1.001646,60269.0,60268.0,1.03953056]
[1726376224699,1.001646,60269.0,60268.0,1.37138156]
[1726376225371,1.001646,60269.0,60268.0,1.03953056]
[1726376225835,1.001646,60269.0,60268.0,1.03954647]
[1726376227236,1.001646,60269.0,60268.0,1.13484612]
[1726376230606,1.001646,60269.0,60268.0,1.13485434]
[1726376231518,1.02767894,60269.0,60268.0,1.13485434]
[1726376233284,1.001646,60269.0,60268.0,1.13485434]
[1726376235380,1.098746,60269.0,60268.0,0.68470229]
[1726376235623,1.098746,60269.0,60268.0,0.70524712]
[1726376235845,1.098746,60269.0,60268.0,0.75508508]
[1726376236733,1.098746,60269.0,60268.0,0.77808508]
[1726376236977,1.098746,60269.0,60268.0,0.72824712]
[1726376240916,1.098746,60269.0,60268.0,1.06009812]
[1726376241584,1.12477935,60269.0,60268.0,1.06009812]
[1726376241807,1.098746,60269.0,60268.0,1.06009812]
[1726376254358,1.098746,60269.0,60268.0,0.2911842]
[1726376254359,1.177146,60269.0,60268.0,0.2911842]
[1726376255034,1.177146,60269.0,60268.0,0.6230352]
[1726376255248,1.177146,60269.0,60268.0,0.2871842]
[1726376255477,1.177146,60269.0,60268.0,0.2891842]
[1726376257001,1.177146,60269.0,60268.0,0.1242592]
[1726376257227,1.177146,60269.0,60268.0,0.1012592]
[1726376257484,1.177146,60269.0,60268.0,0.0992592]
[1726376257726,1.20318021,60269.0,60268.0,0.1012592]
[1726376257954,1.36910221,60269.0,60268.0,0.1002592]
[1726376258407,1.36910221,60269.0,60268.0,0.1012592]
[1726376261263,1.70094721,60269.0,60268.0,0.1012592]
[1726376261715,1.674913,60269.0,60268.0,0.003823]
[1726376263497,1.704913,60269.0,60268.0,0.003823]
[1726376270354,1.73094893,60269.0,60268.0,0.003823]
[1726376273025,1.704913,60269.0,60268.0,0.003823]
[1726376273530,1.162105,60268.0,60262.0,0.165941]
[1726376273745,0.095,60267.0,60263.0,0.08247817]
[1726376273959,0.095,60267.0,60263.0,0.17999618]
[1726376274165,0.095,60267.0,60263.0,0.08247817]
[1726376274373,0.095,60267.0,60264.0,0.09751417]
[1726376274592,0.095,60267.0,60265.0,0.02933483]
[1726376275058,0.165929,60267.0,60265.0,0.02933483]
[1726376275269,0.095,60266.0,60265.0,0.02933483]
[1726376275903,0.095,60266.0,60265.0,0.21826783]
[1726376276107,0.12103593,60266.0,60265.0,0.21826783]
[1726376276312,0.12103593,60266.0,60265.0,0.21926783]
[1726376276538,0.095,60266.0,60265.0,0.21826783]
[1726376276758,0.095,60266.0,60265.0,0.21926783]
[1726376277867,0.096,60266.0,60265.0,0.21926783]
[1726376280347,0.096,60266.0,60265.0,0.189933]
[1726376283243,0.096,60266.0,60265.0,0.190756]
[1726376286171,0.1220355,60266.0,60265.0,0.190756]
[1726376287247,0.1220355,60266.0,60265.0,0.024823]
[1726376287458,0.096,60266.0,60265.0,0.024823]
[1726376289921,0.096,60266.0,60265.0,0.12231195]
[1726376290131,0.096,60266.0,60265.0,0.024823]
[1726376290367,0.096,60266.0,60265.0,0.12231195]
[1726376290600,0.971354,60265.0,60264.0,0.165935]
[1726376291988,0.972354,60265.0,60264.0,0.166935]
[1726376292194,0.972354,60265.0,60264.0,0.002]
[1726376293120,1.064054,60265.0,60264.0,0.002]
[1726376295563,1.146054,60265.0,60264.0,0.002]
[1726376296045,1.146054,60265.0,60264.0,0.002823]
[1726376300076,1.064054,60265.0,60264.0,0.002823]
[1726376302650,0.972354,60265.0,60264.0,0.168759]
[1726376302878,0.972354,60265.0,60264.0,0.002823]
[1726376304889,0.972354,60265.0,60264.0,0.10030315]
[1726376305101,0.972354,60265.0,60264.0,0.002823]
[1726376305312,0.972354,60265.0,60264.0,0.10030315]
[1726376305548,0.972354,60265.0,60264.0,0.002823]
[1726376305763,0.972354,60265.0,60264.0,0.10030315]
[1726376308785,0.974,60265.0,60264.0,0.10030315]
[1726376309669,1.0681,60265.0,60264.0,0.10030315]
[1726376317162,0.974,60265.0,60264.0,0.26623915]
[1726376318053,1.00003562,60265.0,60264.0,0.26623915]
[1726376319264,0.974,60265.0,60264.0,0.26623915]
[1726376322325,0.974,60265.0,60264.0,0.59811215]
[1726376322558,0.974,60265.0,60264.0,0.26623915]
[1726376323033,0.974,60265.0,60264.0,0.59811215]
[1726376323257,0.974,60265.0,60264.0,0.95298515]
[1726376323512,0.974,60265.0,60264.0,1.19917945]
[1726376323736,0.974,60265.0,60264.0,1.22411088]
[1726376324406,0.974,60265.0,60264.0,1.19915187]
[1726376324664,0.974,60265.0,60264.0,1.12438515]
[1726376325313,0.974,60265.0,60264.0,1.19913885]
[1726376327159,0.974,60265.0,60264.0,1.53101185]
[1726376328277,0.974,60265.0,60264.0,1.45625815]
[1726376330804,0.974,60265.0,60264.0,1.50607066]
[1726376331965,0.974,60265.0,60264.0,1.45625815]
[1726376338474,0.974,60265.0,60264.0,1.04318515]
[1726376338678,0.974,60265.0,60264.0,0.95298515]
[1726376344215,0.01836885,60264.0,60263.0,0.497817]
[1726376344426,0.01836885,60264.0,60263.0,0.829695]
[1726376346832,0.01936885,60264.0,60263.0,0.829695]
[1726376350805,0.01936885,60264.0,60263.0,0.497817]
[1726376351707,0.01936885,60264.0,60263.0,0.57030593]
[1726376351967,0.01936885,60264.0,60263.0,0.07248893]
[1726376351968,1.15425085,60264.0,60263.0,0.07248893]
[1726376352224,1.20395021,60264.0,60263.0,0.07248893]
[1726376352444,1.20395021,60264.0,60262.0,0.000823]
[1726376352445,0.165939,60263.0,60262.0,0.000823]
[1726376352671,0.497817,60263.0,60262.0,0.000823]
[1726376353370,0.51518293,60263.0,60262.0,0.000823]
[1726376353849,0.84706093,60263.0,60262.0,0.000823]
[1726376354515,0.85106093,60263.0,60262.0,0.000823]
[1726376355191,0.87710169,60263.0,60262.0,0.000823]
[1726376355460,0.87310169,60263.0,60262.0,0.000823]
[1726376356809,0.88010169,60263.0,60262.0,0.000823]
[1726376357255,0.87610169,60263.0,60262.0,0.000823]
[1726376357715,0.88310169,60263.0,60262.0,0.000823]
[1726376363174,0.85706093,60263.0,60262.0,0.000823]
[1726376366183,0.88310121,60263.0,60262.0,0.000823]
[1726376373342,0.85706093,60263.0,60262.0,0.000823]
[1726376376316,0.88310092,60263.0,60262.0,0.000823]
[1726376380001,0.55122292,60263.0,60262.0,0.000823]
[1726376380436,0.55122292,60263.0,60262.0,0.01059986]
[1726376380868,0.55122292,60263.0,60262.0,0.04850173]
[1726376382475,0.55122292,60263.0,60262.0,0.03872487]
[1726376383339,0.52518293,60263.0,60262.0,0.03872487]
[1726376386360,0.55122122,60263.0,60262.0,0.03872487]
[1726376387663,0.52518293,60263.0,60262.0,0.03872487]
[1726376395337,0.55122106,60263.0,60262.0,0.03872487]
[1726376395558,0.61918293,60263.0,60262.0,0.000823]
[1726376400704,0.95106093,60263.0,60262.0,0.000823]
[1726376402034,0.933695,60263.0,60262.0,0.000823]
[1726376402858,0.601817,60263.0,60262.0,0.000823]
[1726376404694,0.507817,60263.0,60262.0,0.000823]
[1726376406929,1.020995,60263.0,60262.0,0.000823]
[1726376407575,1.07071363,60263.0,60262.0,0.000823]
[1726376408202,1.06771363,60263.0,60262.0,0.000823]
[1726376408418,1.07271363,60263.0,60262.0,0.000823]
[1726376408653,1.09007956,60263.0,60262.0,0.000823]
[1726376409087,1.08307956,60263.0,60262.0,0.000823]
[1726376409317,1.09207956,60263.0,60262.0,0.000823]
[1726376409760,1.08307956,60263.0,60262.0,0.000823]
[1726376409997,1.03336093,60263.0,60262.0,0.000823]
[1726376410207,1.04236093,60263.0,60262.0,0.000823]
[1726376411109,1.06839969,60263.0,60262.0,0.000823]
[1726376411782,1.0681994,60263.0,60262.0,0.000823]
[1726376412236,1.06779678,60263.0,60262.0,0.000823]
[1726376412459,1.14237765,60263.0,60262.0,0.000823]
[1726376413398,1.11633889,60263.0,60262.0,0.000823]
[1726376414809,1.04145657,60263.0,60262.0,0.000823]
[1726376415278,1.04125628,60263.0,60262.0,0.000823]
[1726376415731,1.09096574,60263.0,60262.0,0.000823]
[1726376415952,1.04125628,60263.0,60262.0,0.000823]
[1726376416183,1.04120774,60263.0,60262.0,0.000823]
[1726376416401,1.06724658,60263.0,60262.0,0.000823]
[1726376416618,1.11695718,60263.0,60262.0,0.000823]
[1726376417035,1.11665573,60263.0,60262.0,0.000823]
[1726376417663,1.09061952,60263.0,60262.0,0.000823]
[1726376418332,1.09057098,60263.0,60262.0,0.000823]
[1726376418763,1.11543862,60263.0,60262.0,0.000823]
[1726376418975,1.04085775,60263.0,60262.0,0.000823]
[1726376419400,1.04065746,60263.0,60262.0,0.000823]
[1726376421766,1.11523833,60263.0,60262.0,0.000823]
[1726376422029,1.14127716,60263.0,60262.0,0.000823]
[1726376423094,1.06669629,60263.0,60262.0,0.000823]
[1726376423350,1.04065746,60263.0,60262.0,0.000823]
[1726376423768,1.11523833,60263.0,60262.0,0.000823]
[1726376424557,1.04065746,60263.0,60262.0,0.000823]
[1726376426392,1.06669625,60263.0,60262.0,0.000823]
[1726376427705,1.04230346,60263.0,60262.0,0.000823]
[1726376431832,1.0683423,60263.0,60262.0,0.000823]
[1726376433448,0.96040346,60263.0,60262.0,0.000823]
[1726376434416,0.96040346,60263.0,60262.0,0.43686465]
[1726376434417,0.03301193,60263.0,60262.0,0.43686465]
[1726376434870,0.03301193,60263.0,60262.0,0.3101242]
[1726376435107,0.02401193,60263.0,60262.0,0.04002455]
[1726376435344,0.03301193,60263.0,60262.0,0.04002455]
[1726376435790,0.02401193,60263.0,60262.0,0.04002455]
[1726376436063,0.02401193,60263.0,60262.0,0.20596655]
[1726376436064,0.01901193,60263.0,60262.0,0.20596655]
[1726376436273,0.02101193,60263.0,60262.0,0.20596655]
[1726376436477,0.02001193,60263.0,60262.0,0.20596655]
[1726376437152,0.02001193,60263.0,60262.0,0.04002455]
[1726376437816,0.02001193,60263.0,60262.0,0.04102455]
[1726376438082,0.01901193,60263.0,60262.0,0.04102455]
[1726376438331,0.01901193,60263.0,60262.0,0.04002455]
[1726376438548,0.02001193,60263.0,60262.0,0.04102455]
[1726376438777,0.02001193,60263.0,60262.0,0.04002455]
[1726376438778,0.01901193,60263.0,60262.0,0.04002455]
[1726376438998,0.02001193,60263.0,60262.0,0.04102455]
[1726376439222,0.02001193,60263.0,60262.0,0.04202455]
[1726376441833,0.04604779,60263.0,60262.0,0.04202455]
[1726376443390,0.02001193,60263.0,60262.0,0.04202455]
[1726376446274,0.04604779,60263.0,60262.0,0.04202455]
[1726376447592,0.02001193,60263.0,60262.0,0.04202455]
[1726376451692,0.04604779,60263.0,60262.0,0.04202455]
[1726376452549,0.02001193,60263.0,60262.0,0.04202455]
[1726376457331,0.18595093,60263.0,60262.0,0.04202455]
[1726376457787,0.18595093,60263.0,60262.0,0.3150242]
[1726376457788,0.02001193,60263.0,60262.0,0.3150242]
[1726376457999,0.002646,60263.0,60262.0,0.4809662]
[1726376460380,0.002646,60263.0,60262.0,1.1677342]
[1726376470013,0.002646,60263.0,60262.0,0.6581502]
[1726376470918,0.002646,60263.0,60262.0,0.9900342]
[1726376471126,0.002646,60263.0,60262.0,0.6581502]
[1726376474059,0.000898,60265.0,60264.0,0.165936]
[1726376474510,0.000898,60265.0,60264.0,0.20516352]
[1726376475376,0.001898,60265.0,60264.0,0.20616352]
[1726376476348,0.100198,60265.0,60264.0,0.04022752]
[1726376476587,0.100198,60265.0,60264.0,0.06109127]
[1726376476588,0.266131,60265.0,60264.0,0.06109127]
[1726376476814,0.341631,60265.0,60264.0,0.04022752]
[1726376486712,0.341631,60265.0,60264.0,0.04105052]
[1726376496924,0.266131,60265.0,60264.0,0.04105052]
[1726376497350,0.266131,60265.0,60264.0,0.07152704]
[1726376507518,0.597998,60265.0,60264.0,0.07152704]
[1726376507759,0.266131,60265.0,60264.0,0.07152704]
[1726376511948,0.167831,60265.0,60264.0,0.07152704]
[1726376518120,0.001898,60265.0,60264.0,0.07152704]
[1726376525383,0.001898,60265.0,60264.0,0.23746304]
[1726376534272,0.001898,60265.0,60264.0,0.56933604]
[1726376536344,0.02793285,60265.0,60264.0,0.56933604]
[1726376537002,0.02793285,60265.0,60264.0,0.99720904]
[1726376537218,0.02793285,60265.0,60264.0,1.07550904]
[1726376537445,0.001898,60265.0,60264.0,1.07550904]
[1726376541172,0.001898,60265.0,60264.0,1.40738204]
[1726376541427,0.001898,60265.0,60264.0,1.43038204]
[1726376541912,0.001898,60265.0,60264.0,1.50515593]
[1726376542374,0.001898,60265.0,60264.0,1.52617211]
[1726376542838,0.000898,60265.0,60264.0,1.50406199]
[1726376543082,0.000898,60265.0,60264.0,1.52522436]
[1726376543315,0.001898,60265.0,60264.0,1.43038204]
[1726376543545,0.000898,60265.0,60264.0,1.42938204]
[1726376543826,0.001898,60265.0,60264.0,1.43038204]
[1726376544059,0.000898,60265.0,60264.0,1.47915859]
[1726376544513,0.001898,60265.0,60264.0,1.43038204]
[1726376544961,0.002898,60265.0,60264.0,1.43038204]
[1726376555411,0.002898,60265.0,60264.0,1.35208204]
[1726376555840,0.002898,60265.0,60264.0,1.25608204]
[1726376557432,0.098498,60265.0,60264.0,0.92420904]
[1726376557650,0.098498,60265.0,60264.0,0.56933604]
[1726376558093,0.098498,60265.0,60264.0,0.90120904]
[1726376559680,0.098498,60265.0,60264.0,0.56933604]
[1726376560375,0.098498,60265.0,60264.0,0.23746304]
[1726376560609,0.098498,60265.0,60264.0,0.07152704]
[1726376561508,0.098498,60265.0,60264.0,0.04105052]
[1726376561942,0.264431,60265.0,60264.0,0.04105052]
[1726376562162,0.098498,60265.0,60264.0,0.001823]
[1726376562384,0.264431,60265.0,60264.0,0.001823]
[1726376562601,0.264431,60265.0,60264.0,0.0188465]
[1726376563371,0.263431,60265.0,60264.0,0.000823]
[1726376563797,0.097498,60265.0,60264.0,0.006823]
[1726376564030,0.098498,60265.0,60264.0,0.006823]
[1726376564752,0.097498,60265.0,60264.0,0.006823]
[1726376564999,0.097498,60265.0,60264.0,0.0243465]
[1726376565214,0.097498,60265.0,60264.0,0.06354273]
[1726376565662,0.096498,60265.0,60264.0,0.05754273]
[1726376566311,0.12353342,60265.0,60264.0,0.06354273]
[1726376566767,0.12253342,60265.0,60264.0,0.05754273]
[1726376567001,0.12253342,60265.0,60264.0,0.06154273]
[1726376574228,0.12253342,60265.0,60264.0,0.15684238]
[1726376575570,0.12253342,60265.0,60264.0,0.06154273]
[1726376600774,0.02693342,60265.0,60264.0,0.06154273]
[1726376601220,0.12293342,60265.0,60264.0,0.22747873]
[1726376601494,0.02693342,60265.0,60264.0,0.22747873]
[1726376604313,0.02693342,60265.0,60264.0,1.08032277]
[1726376604566,0.000898,60265.0,60264.0,1.10092438]
[1726376604784,0.000898,60265.0,60264.0,1.53239476]
[1726376605245,0.000898,60265.0,60264.0,1.5531672]
[1726376605502,0.000898,60265.0,60264.0,1.4534802]
[1726376606199,0.000898,60265.0,60264.0,1.43279738]
[1726376606892,0.000898,60265.0,60264.0,1.5075527]
[1726376607136,0.000898,60265.0,60264.0,1.43279738]
[1726376607587,0.000898,60265.0,60264.0,1.50754065]
[1726376609928,0.000898,60265.0,60264.0,1.50752339]
[1726376610368,0.000898,60265.0,60264.0,1.43279738]
[1726376612402,0.000898,60265.0,60264.0,1.48260356]
[1726376613489,0.000898,60265.0,60264.0,1.39120356]